fUSD/lending_fUSD_20250416
["ID","MTS","AMOUNT","RATE_DAILY","PERIOD"]
[358178209,1744816361739,-2664.25,0.00054794,120]
[358178210,1744816361750,-1200.0,0.00054794,120]
[358178211,1744816361761,-604.56,0.00054794,120]
[358178212,1744816361771,-500.0,0.00054794,120]
[358178213,1744816361782,-1283.85,0.00054794,120]
[358178214,1744816361792,-905.89,0.00054794,120]
[358178215,1744816361803,-748.27,0.00054794,120]
[358178216,1744816361814,-1176.6,0.00054794,120]
[358178217,1744816361823,-866.49,0.00054794,120]
[358178218,1744816361833,-500.0,0.00054794,120]
[358178219,1744816361843,-967.07,0.00054794,120]
[358178220,1744816361853,-500.0,0.00054794,120]
[358178221,1744816361863,-500.0,0.00054794,120]
[358178222,1744816361873,-500.0,0.00054794,120]
[358178223,1744816361884,-671.83,0.00054794,120]
[358178224,1744816361894,-500.0,0.00054794,120]
[358178225,1744816361904,-1850.78,0.00054794,120]
[358178226,1744816361914,-1800.53,0.00054794,120]
[358178227,1744816361944,-703.86,0.00054794,120]
[358178228,1744816361954,-500.0,0.00054794,120]
[358178229,1744816361964,-936.84,0.00054794,120]
[358178230,1744816361973,-500.0,0.00054794,120]
[358178231,1744816361985,-546.57,0.00054794,120]
[358178232,1744816361995,-500.0,0.00054794,120]
[358178233,1744816362007,-1191.58,0.00054794,35]
[358178234,1744816362017,-1495.21,0.00054794,120]
[358178235,1744816362027,-929.38,0.00054794,120]
[358178236,1744816362038,-717.11,0.00054794,30]
[358178237,1744816362048,-500.0,0.00054794,120]
[358178238,1744816362058,-781.09,0.00054794,120]
[358178239,1744816362068,-500.0,0.00054794,120]
[358178240,1744816362078,-1870.74,0.00054794,120]
[358178241,1744816362088,-500.0,0.00054794,120]
[358178242,1744816362098,-961.01,0.00054794,120]
[358178243,1744816362107,-12177.31,0.00054794,120]
[358178244,1744816362117,-1524.54,0.00054794,120]
[358178245,1744816362127,-3102.96,0.00054794,120]
[358178246,1744816362137,-820.23,0.00054794,120]
[358178247,1744816362147,-500.0,0.00054794,120]
[358178248,1744816362157,-742.51,0.00054794,120]
[358178249,1744816362167,-845.8,0.00054794,120]
[358178250,1744816362177,-1000.0,0.00054794,2]
[358178251,1744816362187,-1000.0,0.00054794,2]
[358178252,1744816362196,-1000.0,0.00054794,2]
[358178253,1744816362206,-1000.0,0.00054794,2]
[358178254,1744816362216,-1000.0,0.00054794,2]
[358178255,1744816362226,-1000.0,0.00054794,2]
[358178256,1744816362236,-1000.0,0.00054794,2]
[358178257,1744816362246,-1000.0,0.00054794,2]
[358178258,1744816362256,-707.69,0.00054794,120]
[358178259,1744816362266,-522.09,0.00054794,120]
[358178260,1744816362276,-500.0,0.00054794,120]
[358178261,1744816362286,-769.64,0.00054794,120]
[358178262,1744816362295,-500.0,0.00054794,120]
[358178263,1744816362306,-500.0,0.00054794,120]
[358178264,1744816362316,-500.0,0.00054794,120]
[358178265,1744816362325,-500.0,0.00054794,120]
[358178266,1744816362335,-500.0,0.00054794,120]
[358178267,1744816362345,-500.0,0.00054794,120]
[358178268,1744816362355,-500.0,0.00054794,120]
[358178269,1744816362365,-226.09301646,0.00054794,120]
[358178270,1744816362374,-1217.91,0.00054794,120]
[358178271,1744816362383,-500.0,0.00054794,120]
[358178272,1744816362392,-800.0,0.00054795,14]
[358178273,1744816362401,-800.0,0.00054795,14]
[358178274,1744816362410,-802.66389022,0.00054795,120]
[358178275,1744816362418,-150.79420593,0.00054795,120]
[358178276,1744816362427,-150.0,0.00054795,120]
[358178277,1744816362436,-150.0,0.00054795,120]
[358178278,1744816362445,-150.0,0.00054795,120]
[358178279,1744816362455,-200.45730299,0.00054795,120]
[358178280,1744816362464,-163.9113343,0.00054795,120]
[358178281,1744816362473,-2000.0,0.000548,2]
[358178282,1744816362482,-209.0,0.0005494,30]
[358178283,1744816362492,-235.0,0.0005494,30]
[358178284,1744816362502,-400.0,0.0005497,7]
[358178285,1744816362512,-700.0,0.0005497,7]
[358178286,1744816362521,-83590.0,0.00055,15]
[358178287,1744816362531,-1200.0,0.00055,2]
[358178288,1744816362540,-384.0,0.00055,3]
[358178289,1744816362550,-150.0,0.00055067,120]
[358178290,1744816362559,-500.0,0.00055068,8]
[358178291,1744816362569,-500.0,0.00055068,2]
[358178292,1744816362579,-500.0,0.00055068,120]
[358178293,1744816362589,-507.85,0.00055068,2]
[358178294,1744816362599,-500.0,0.00055068,2]
[358178295,1744816362608,-391.68355254,0.00055068,120]
[358178296,1744816362617,-1354.34,0.00055068,120]
[358178297,1744816362627,-500.0,0.00055068,120]
[358178298,1744816362637,-500.0,0.00055068,120]
[358178299,1744816362647,-524.21,0.00055068,120]
[358178300,1744816362657,-500.0,0.00055068,120]
[358178301,1744816362665,-754.91,0.00055068,120]
[358178302,1744816362675,-795.37,0.00055068,120]
[358178303,1744816362684,-500.0,0.00055068,120]
[358178304,1744816362693,-879.05,0.00055068,120]
[358178305,1744816362703,-795.56,0.00055068,120]
[358178306,1744816362713,-691.53,0.00055068,120]
[358178307,1744816362723,-500.0,0.00055068,120]
[358178308,1744816362733,-500.0,0.00055068,120]
[358178309,1744816362742,-180.20286571,0.00055068,120]
[358178310,1744816362752,-500.0,0.00055068,120]
[358178311,1744816362762,-1105.05,0.00055068,120]
[358178312,1744816362772,-500.0,0.00055068,120]
[358178313,1744816362782,-1002.17,0.00055068,120]
[358178314,1744816362792,-740.53,0.00055068,120]
[358178315,1744816362801,-167.92265741,0.00055068,120]
[358178316,1744816362811,-500.0,0.00055068,120]
[358178317,1744816362821,-500.0,0.00055068,120]
[358178318,1744816362830,-500.0,0.00055068,120]
[358178319,1744816362839,-563.62,0.00055068,30]
[358178320,1744816362849,-506.32837111,0.00055068,120]
[358178321,1744816362858,-753.23,0.00055068,120]
[358178322,1744816362868,-500.0,0.00055068,120]
[358178323,1744816362877,-500.0,0.00055068,120]
[358178324,1744816362887,-508.84,0.00055068,120]
[358178325,1744816362896,-693.95,0.00055068,120]
[358178326,1744816362905,-500.0,0.00055068,120]
[358178327,1744816362915,-500.0,0.00055068,14]
[358178328,1744816362924,-280.07888658,0.00055068,120]
[358178329,1744816362933,-1260.37,0.00055068,120]
[358178330,1744816362946,-500.0,0.00055068,120]
[358178331,1744816362955,-758.9,0.00055068,120]
[358178332,1744816362965,-1826.89,0.00055068,120]
[358178333,1744816362975,-500.0,0.00055068,120]
[358178334,1744816362984,-500.0,0.00055068,120]
[358178335,1744816362995,-685.02,0.00055068,120]
[358178336,1744816363004,-356.12786135,0.00055068,120]
[358178337,1744816363014,-500.0,0.00055068,120]
[358178338,1744816363023,-500.0,0.00055068,120]
[358178339,1744816363034,-667.82,0.00055068,120]
[358178340,1744816363043,-500.0,0.00055068,120]
[358178341,1744816363053,-500.0,0.00055068,120]
[358178342,1744816363063,-1108.66,0.00055068,120]
[358178343,1744816363074,-500.0,0.00055068,120]
[358178344,1744816363084,-687.69,0.00055068,120]
[358178345,1744816363094,-1033.16,0.00055068,120]
[358178346,1744816363104,-1795.89,0.00055068,120]
[358178347,1744816363114,-500.0,0.00055068,120]
[358178348,1744816363124,-583.59,0.00055068,120]
[358178349,1744816363134,-500.0,0.00055068,120]
[358178350,1744816363144,-500.0,0.00055068,120]
[358178351,1744816363155,-500.0,0.00055068,120]
[358178352,1744816363164,-2030.25,0.00055068,120]
[358178353,1744816363175,-500.0,0.00055068,120]
[358178354,1744816363185,-818.2,0.00055068,120]
[358178355,1744816363195,-818.2,0.00055068,120]
[358178356,1744816363205,-500.0,0.00055068,120]
[358178357,1744816363216,-500.0,0.00055068,120]
[358178358,1744816363227,-771.35,0.00055068,120]
[358178359,1744816363236,-500.0,0.00055068,120]
[358178360,1744816363246,-500.0,0.00055068,120]
[358178361,1744816363256,-904.17,0.00055068,120]
[358178362,1744816363265,-637.57612112,0.00055068,120]
[358178363,1744816363274,-980.77,0.00055068,120]
[358178364,1744816363285,-500.0,0.00055068,120]
[358178365,1744816363295,-500.0,0.00055068,120]
[358178366,1744816363305,-756.77,0.00055068,120]
[358178367,1744816363315,-500.0,0.00055068,120]
[358178368,1744816363325,-1324.33,0.00055068,120]
[358178369,1744816363335,-501.63,0.00055068,120]
[358178370,1744816363345,-983.87,0.00055068,120]
[358178371,1744816363355,-774.19,0.00055068,120]
[358178372,1744816363365,-519.62,0.00055068,120]
[358178373,1744816363376,-500.0,0.00055068,120]
[358178374,1744816363386,-500.0,0.00055068,120]
[358178375,1744816363395,-2150.43,0.00055068,120]
[358178376,1744816363405,-1188.94,0.00055068,120]
[358178377,1744816363414,-500.0,0.00055068,3]
[358178378,1744816363423,-695.81,0.00055068,118]
[358178379,1744816363432,-2664.25,0.00055068,120]
[358178380,1744816363441,-604.56,0.00055068,120]
[358178381,1744816363450,-500.0,0.00055068,120]
[358178382,1744816363459,-1283.85,0.00055068,120]
[358178383,1744816363468,-905.89,0.00055068,120]
[358178384,1744816363478,-748.27,0.00055068,120]
[358178385,1744816363489,-1176.6,0.00055068,120]
[358178386,1744816363499,-866.49,0.00055068,120]
[358178387,1744816363509,-967.07,0.00055068,120]
[358178388,1744816363519,-500.0,0.00055068,120]
[358178389,1744816363528,-500.0,0.00055068,120]
[358178390,1744816363539,-500.0,0.00055068,120]
[358178391,1744816363549,-671.83,0.00055068,120]
[358178392,1744816363559,-500.0,0.00055068,120]
[358178393,1744816363570,-1850.78,0.00055068,120]
[358178394,1744816363579,-1800.53,0.00055068,120]
[358178395,1744816363589,-703.86,0.00055068,120]
[358178396,1744816363598,-500.0,0.00055068,120]
[358178397,1744816363607,-936.84,0.00055068,120]
[358178398,1744816363616,-500.0,0.00055068,120]
[358178399,1744816363626,-546.57,0.00055068,120]
[358178400,1744816363639,-500.0,0.00055068,120]
[358178401,1744816363649,-1191.58,0.00055068,35]
[358178402,1744816363659,-1495.21,0.00055068,120]
[358178403,1744816363668,-929.38,0.00055068,120]
[358178404,1744816363678,-717.11,0.00055068,30]
[358178405,1744816363687,-500.0,0.00055068,120]
[358178406,1744816363696,-781.09,0.00055068,120]
[358178407,1744816363706,-500.0,0.00055068,120]
[358178408,1744816363865,-1870.74,0.00055068,120]
[358178409,1744816363875,-500.0,0.00055068,120]
[358178410,1744816363883,-961.01,0.00055068,120]
[358178411,1744816363893,-12177.31,0.00055068,120]
[358178412,1744816363902,-1524.54,0.00055068,120]
[358178413,1744816363911,-3102.96,0.00055068,120]
[358178414,1744816363920,-820.23,0.00055068,120]
[358178415,1744816363929,-500.0,0.00055068,120]
[358178416,1744816363940,-742.51,0.00055068,120]
[358178417,1744816363951,-845.8,0.00055068,120]
[358178418,1744816363961,-707.69,0.00055068,120]
[358178419,1744816363971,-522.09,0.00055068,120]
[358178420,1744816363980,-500.0,0.00055068,120]
[358178421,1744816363991,-769.64,0.00055068,120]
[358178422,1744816364000,-500.0,0.00055068,120]
[358178423,1744816364009,-500.0,0.00055068,120]
[358178424,1744816364021,-500.0,0.00055068,120]
[358178425,1744816364031,-500.0,0.00055068,120]
[358178426,1744816364041,-1217.91,0.00055068,120]
[358178427,1744816364051,-500.0,0.00055068,120]
[358178428,1744816364061,-987.70464125,0.0005509,120]
[358178429,1744816364070,-650.0,0.00055112,15]
[358178430,1744816364079,-170.6895081,0.00055164,120]
[358178431,1744816364088,-2000.0,0.000553,90]
[358178432,1744816364097,-500.0,0.00055342,8]
[358178433,1744816364107,-500.0,0.00055342,2]
[358178434,1744816364116,-500.0,0.00055342,120]
[358178435,1744816364125,-200.0,0.00055342,15]
[358178436,1744816364135,-507.85,0.00055342,2]
[358178437,1744816364143,-500.0,0.00055342,2]
[358178438,1744816364152,-1354.34,0.00055342,120]
[358178439,1744816364161,-500.0,0.00055342,120]
[358178440,1744816364169,-554.2245783,0.00055342,120]
[358178441,1744816364178,-524.21,0.00055342,120]
[358178442,1744816364186,-500.0,0.00055342,120]
[358178443,1744816364195,-754.91,0.00055342,120]
[358178444,1744816364203,-795.37,0.00055342,120]
[358178445,1744816364214,-500.0,0.00055342,120]
[358178446,1744816364223,-879.05,0.00055342,120]
[358178447,1744816364233,-795.56,0.00055342,120]
[358178448,1744816364242,-691.53,0.00055342,120]
[358178449,1744816364252,-500.0,0.00055342,120]
[358178450,1744816364260,-500.0,0.00055342,120]
[358178451,1744816364269,-500.0,0.00055342,120]
[358178452,1744816364278,-1105.05,0.00055342,120]
[358178453,1744816364289,-500.0,0.00055342,120]
[358178454,1744816364299,-1002.17,0.00055342,120]
[358178455,1744816364309,-740.53,0.00055342,120]
[358178456,1744816364318,-500.0,0.00055342,120]
[358178457,1744816364327,-500.0,0.00055342,120]
[358178458,1744816364336,-500.0,0.00055342,120]
[358178459,1744816364345,-563.62,0.00055342,30]
[358178460,1744816364355,-753.23,0.00055342,120]
[358178461,1744816364365,-500.0,0.00055342,120]
[358178462,1744816364374,-500.0,0.00055342,120]
[358178463,1744816364383,-508.84,0.00055342,120]
[358178464,1744816364392,-693.95,0.00055342,120]
[358178465,1744816364401,-500.0,0.00055342,120]
[358178466,1744816364410,-500.0,0.00055342,14]
[358178467,1744816364419,-1260.37,0.00055342,120]
[358178468,1744816364428,-500.0,0.00055342,120]
[358178469,1744816364437,-1826.89,0.00055342,120]
[358178470,1744816364446,-758.9,0.00055342,120]
[358178471,1744816364455,-500.0,0.00055342,120]
[358178472,1744816364463,-500.0,0.00055342,120]
[358178473,1744816364472,-685.02,0.00055342,120]
[358178474,1744816364481,-500.0,0.00055342,120]
[358178475,1744816364490,-500.0,0.00055342,120]
[358178476,1744816364499,-667.82,0.00055342,120]
[358178477,1744816364508,-500.0,0.00055342,120]
[358178478,1744816364517,-500.0,0.00055342,120]
[358178479,1744816364527,-1108.66,0.00055342,120]
[358178480,1744816364537,-500.0,0.00055342,120]
[358178481,1744816364546,-687.69,0.00055342,120]
[358178482,1744816364555,-1033.16,0.00055342,120]
[358178483,1744816364565,-1795.89,0.00055342,120]
[358178484,1744816364574,-500.0,0.00055342,120]
[358178485,1744816364584,-583.59,0.00055342,120]
[358178486,1744816364594,-500.0,0.00055342,120]
[358178487,1744816364604,-500.0,0.00055342,120]
[358178488,1744816364614,-500.0,0.00055342,120]
[358178489,1744816364624,-2030.25,0.00055342,120]
[358178490,1744816364634,-500.0,0.00055342,120]
[358178491,1744816364644,-818.2,0.00055342,120]
[358178492,1744816364653,-818.2,0.00055342,120]
[358178493,1744816364663,-500.0,0.00055342,120]
[358178494,1744816364673,-500.0,0.00055342,120]
[358178495,1744816364683,-771.35,0.00055342,120]
[358178496,1744816364692,-500.0,0.00055342,120]
[358178497,1744816364702,-500.0,0.00055342,120]
[358178498,1744816364712,-904.17,0.00055342,120]
[358178499,1744816364722,-980.77,0.00055342,120]
[358178500,1744816364731,-500.0,0.00055342,120]
[358178501,1744816364741,-756.77,0.00055342,120]
[358178502,1744816364751,-280.79293918,0.00055342,120]
[358178503,1744816364760,-1324.33,0.00055342,120]
[358178504,1744816364770,-501.63,0.00055342,120]
[358178505,1744816364781,-983.87,0.00055342,120]
[358178506,1744816364791,-774.19,0.00055342,120]
[358178507,1744816364801,-519.62,0.00055342,120]
[358178508,1744816364810,-500.0,0.00055342,120]
[358178509,1744816364819,-500.0,0.00055342,120]
[358178510,1744816364828,-2150.43,0.00055342,120]
[358178511,1744816364837,-1188.94,0.00055342,120]
[358178512,1744816364846,-500.0,0.00055342,3]
[358178513,1744816364855,-695.81,0.00055342,118]
[358178514,1744816364864,-2664.25,0.00055342,120]
[358178515,1744816364874,-1200.0,0.00055342,120]
[358178516,1744816364884,-604.56,0.00055342,120]
[358178517,1744816364893,-500.0,0.00055342,120]
[358178518,1744816364903,-1283.85,0.00055342,120]
[358178519,1744816364912,-905.89,0.00055342,120]
[358178520,1744816364922,-748.27,0.00055342,120]
[358178521,1744816364932,-1176.6,0.00055342,120]
[358178522,1744816364943,-866.49,0.00055342,120]
[358178523,1744816364953,-500.0,0.00055342,120]
[358178524,1744816364962,-967.07,0.00055342,120]
[358178525,1744816364972,-500.0,0.00055342,120]
[358178526,1744816364982,-500.0,0.00055342,120]
[358178527,1744816364993,-500.0,0.00055342,120]
[358178528,1744816365003,-671.83,0.00055342,120]
[358178529,1744816365013,-500.0,0.00055342,120]
[358178530,1744816365023,-1850.78,0.00055342,120]
[358178531,1744816365033,-1800.53,0.00055342,120]
[358178532,1744816365043,-703.86,0.00055342,120]
[358178533,1744816365052,-500.0,0.00055342,120]
[358178534,1744816365061,-936.84,0.00055342,120]
[358178535,1744816365070,-500.0,0.00055342,120]
[358178536,1744816365079,-546.57,0.00055342,120]
[358178537,1744816365088,-619.61704454,0.00055342,120]
[358178538,1744816365098,-1191.58,0.00055342,35]
[358178539,1744816365108,-929.38,0.00055342,120]
[358178540,1744816365118,-1495.21,0.00055342,120]
[358178541,1744816365127,-717.11,0.00055342,30]
[358178542,1744816365136,-500.0,0.00055342,120]
[358178543,1744816365145,-781.09,0.00055342,120]
[358178544,1744816365154,-500.0,0.00055342,120]
[358178545,1744816365163,-1870.74,0.00055342,120]
[358178546,1744816365173,-500.0,0.00055342,120]
[358178547,1744816365182,-961.01,0.00055342,120]
[358178548,1744816365191,-12177.31,0.00055342,120]
[358178549,1744816365199,-1524.54,0.00055342,120]
[358178550,1744816365208,-3102.96,0.00055342,120]
[358178551,1744816365219,-820.23,0.00055342,120]
[358178552,1744816365229,-500.0,0.00055342,120]
[358178553,1744816365238,-742.51,0.00055342,120]
[358178554,1744816365247,-845.8,0.00055342,120]
[358178555,1744816365257,-707.69,0.00055342,120]
[358178556,1744816365266,-522.09,0.00055342,120]
[358178557,1744816365275,-500.0,0.00055342,120]
[358178558,1744816365285,-769.64,0.00055342,120]
[358178559,1744816365295,-513.83350861,0.00055342,120]
[358178560,1744816365304,-500.0,0.00055342,120]
[358178561,1744816365315,-500.0,0.00055342,120]
[358178562,1744816365325,-500.0,0.00055342,120]
[358178563,1744816365334,-1217.91,0.00055342,120]
[358178564,1744816365344,-151.0,0.0005537,120]
[358178565,1744816365354,-155.40338861,0.00055499,120]
[358178566,1744816365363,-1000000.0,0.000555,120]
[358178567,1744816365373,-500.0,0.00055616,8]
[358178568,1744816365383,-507.92961585,0.00055616,2]
[358178569,1744816365393,-500.0,0.00055616,120]
[358178570,1744816365403,-507.85,0.00055616,2]
[358178571,1744816365412,-500.0,0.00055616,2]
[358178572,1744816365421,-1354.34,0.00055616,120]
[358178573,1744816365430,-194.51036601,0.00055616,120]
[358178574,1744816365440,-524.21,0.00055616,120]
[358178575,1744816365450,-291.19523986,0.00055616,120]
[358178576,1744816365460,-754.91,0.00055616,120]
[358178577,1744816365470,-795.37,0.00055616,120]
[358178578,1744816365479,-500.0,0.00055616,120]
[358178579,1744816365490,-879.05,0.00055616,120]
[358178580,1744816365499,-795.56,0.00055616,120]
[358178581,1744816365509,-691.53,0.00055616,120]
[358178582,1744816365519,-556.79438206,0.00055616,120]
[358178583,1744816365528,-500.0,0.00055616,120]
[358178584,1744816365539,-153.73337124,0.00055616,120]
[358178585,1744816365549,-1105.05,0.00055616,120]
[358178586,1744816365558,-500.0,0.00055616,120]
[358178587,1744816365567,-1002.17,0.00055616,120]
[358178588,1744816365577,-740.53,0.00055616,120]
[358178589,1744816365587,-500.0,0.00055616,120]
[358178590,1744816365596,-500.0,0.00055616,120]
[358178591,1744816365606,-414.03930449,0.00055616,120]
[358178592,1744816365614,-563.62,0.00055616,30]
[358178593,1744816365624,-753.23,0.00055616,120]
[358178594,1744816365634,-500.0,0.00055616,120]
[358178595,1744816365643,-500.0,0.00055616,120]
[358178596,1744816365653,-508.84,0.00055616,120]
[358178597,1744816365662,-693.95,0.00055616,120]
[358178598,1744816365672,-500.0,0.00055616,14]
[358178599,1744816365681,-1260.37,0.00055616,120]
[358178600,1744816365691,-500.0,0.00055616,120]
[358178601,1744816365700,-1826.89,0.00055616,120]
[358178602,1744816365710,-758.9,0.00055616,120]
[358178603,1744816365719,-500.0,0.00055616,120]
[358178604,1744816365728,-500.0,0.00055616,120]
[358178605,1744816365737,-685.02,0.00055616,120]
[358178606,1744816365747,-500.0,0.00055616,120]
[358178607,1744816365756,-500.0,0.00055616,120]
[358178608,1744816365765,-667.82,0.00055616,120]
[358178609,1744816365775,-500.0,0.00055616,120]
[358178610,1744816365784,-500.0,0.00055616,120]
[358178611,1744816365793,-1108.66,0.00055616,120]
[358178612,1744816365800,-500.0,0.00055616,120]
[358178613,1744816365807,-687.69,0.00055616,120]
[358178614,1744816365815,-1033.16,0.00055616,120]
[358178615,1744816365822,-1795.89,0.00055616,120]
[358178616,1744816365829,-630.13520923,0.00055616,120]
[358178617,1744816365837,-583.59,0.00055616,120]
[358178618,1744816365845,-500.0,0.00055616,120]
[358178619,1744816365853,-500.0,0.00055616,120]
[358178620,1744816365861,-500.0,0.00055616,120]
[358178621,1744816365869,-2030.25,0.00055616,120]
[358178622,1744816365877,-500.0,0.00055616,120]
[358178623,1744816365886,-818.2,0.00055616,120]
[358178624,1744816365895,-500.0,0.00055616,120]
[358178625,1744816365905,-263.66336619,0.00055616,120]
[358178626,1744816365914,-771.35,0.00055616,120]
[358178627,1744816365924,-500.0,0.00055616,120]
[358178628,1744816365933,-500.0,0.00055616,120]
[358178629,1744816365944,-904.17,0.00055616,120]
[358178630,1744816365954,-980.77,0.00055616,120]
[358178631,1744816365963,-500.0,0.00055616,120]
[358178632,1744816365973,-500.0,0.00055616,120]
[358178633,1744816365983,-756.77,0.00055616,120]
[358178634,1744816365992,-1324.33,0.00055616,120]
[358178635,1744816366001,-501.63,0.00055616,120]
[358178636,1744816366010,-983.87,0.00055616,120]
[358178637,1744816366019,-774.19,0.00055616,120]
[358178638,1744816366029,-519.62,0.00055616,120]
[358178639,1744816366040,-500.0,0.00055616,120]
[358178640,1744816366050,-500.0,0.00055616,120]
[358178641,1744816366060,-2150.43,0.00055616,120]
[358178642,1744816366069,-1188.94,0.00055616,120]
[358178643,1744816366080,-500.0,0.00055616,3]
[358178644,1744816366090,-695.81,0.00055616,118]
[358178645,1744816366099,-2664.25,0.00055616,120]
[358178646,1744816366109,-604.56,0.00055616,120]
[358178647,1744816366119,-500.0,0.00055616,120]
[358178648,1744816366129,-1283.85,0.00055616,120]
[358178649,1744816366138,-905.89,0.00055616,120]
[358178650,1744816366147,-748.27,0.00055616,120]
[358178651,1744816366157,-1176.6,0.00055616,120]
[358178652,1744816366167,-866.49,0.00055616,120]
[358178653,1744816366177,-967.07,0.00055616,120]
[358178654,1744816366187,-500.0,0.00055616,120]
[358178655,1744816366196,-500.0,0.00055616,120]
[358178656,1744816366207,-500.0,0.00055616,120]
[358178657,1744816366218,-671.83,0.00055616,120]
[358178658,1744816366228,-500.0,0.00055616,120]
[358178659,1744816366238,-1850.78,0.00055616,120]
[358178660,1744816366247,-1800.53,0.00055616,120]
[358178661,1744816366257,-703.86,0.00055616,120]
[358178662,1744816366267,-500.0,0.00055616,120]
[358178663,1744816366276,-936.84,0.00055616,120]
[358178664,1744816366285,-500.0,0.00055616,120]
[358178665,1744816366294,-546.57,0.00055616,120]
[358178666,1744816366304,-1191.58,0.00055616,35]
[358178667,1744816366314,-1495.21,0.00055616,120]
[358178668,1744816366323,-929.38,0.00055616,120]
[358178669,1744816366332,-717.11,0.00055616,30]
[358178670,1744816366341,-500.0,0.00055616,120]
[358178671,1744816366351,-781.09,0.00055616,120]
[358178672,1744816366360,-500.0,0.00055616,120]
[358178673,1744816366369,-1870.74,0.00055616,120]
[358178674,1744816366379,-500.0,0.00055616,120]
[358178675,1744816366389,-961.01,0.00055616,120]
[358178676,1744816366398,-12177.31,0.00055616,120]
[358178677,1744816366408,-1524.54,0.00055616,120]
[358178678,1744816366418,-3102.96,0.00055616,120]
[358178679,1744816366428,-820.23,0.00055616,120]
[358178680,1744816366437,-500.0,0.00055616,120]
[358178681,1744816366447,-742.51,0.00055616,120]
[358178682,1744816366456,-845.8,0.00055616,120]
[358178683,1744816366466,-707.69,0.00055616,120]
[358178684,1744816366475,-522.09,0.00055616,120]
[358178685,1744816366485,-500.0,0.00055616,120]
[358178686,1744816366494,-769.64,0.00055616,120]
[358178687,1744816366504,-500.0,0.00055616,120]
[358178688,1744816366514,-500.0,0.00055616,120]
[358178689,1744816366524,-500.0,0.00055616,120]
[358178690,1744816366536,-1217.91,0.00055616,120]
[358178691,1744816366546,-600.0,0.0005566,15]
[358178692,1744816366555,-500.0,0.00055685,120]
[358178693,1744816366565,-759.0,0.000558,30]
[358178694,1744816366574,-372.0,0.000558,30]
[358178695,1744816366584,-151.0,0.00055808,109]
[358178696,1744816366594,-500.0,0.0005589,8]
[358178697,1744816366603,-500.0,0.0005589,120]
[358178698,1744816366612,-507.85,0.0005589,2]
[358178699,1744816366622,-500.0,0.0005589,2]
[358178700,1744816366632,-1354.34,0.0005589,120]
[358178701,1744816366641,-524.21,0.0005589,120]
[358178702,1744816366651,-754.91,0.0005589,120]
[358178703,1744816366660,-795.37,0.0005589,120]
[358178704,1744816366669,-500.0,0.0005589,120]
[358178705,1744816366678,-879.05,0.0005589,120]
[358178706,1744816366687,-795.56,0.0005589,120]
[358178707,1744816366696,-691.53,0.0005589,120]
[358178708,1744816366705,-500.0,0.0005589,120]